bitfinex-derivatives/quotes_SOLF0:USTF0_20251018
["timestamp","ask_amount","ask_price","bid_price","bid_amount"]
[1760759166156,4.16119707,184.72,184.67,2.86]
[1760759166356,4.16119707,184.73,184.67,2.86]
[1760759166555,4.16119707,184.72,184.67,2.86]
[1760759166852,4.16119707,184.73,184.67,2.86]
[1760759167054,9.03189707,184.72,184.67,2.86]
[1760759167353,4.8707,184.72,184.67,2.86]
[1760759167755,9.03069642,184.72,184.67,2.86]
[1760759167948,4.8707,184.72,184.67,2.86]
[1760759168149,4.8707,184.72,184.65,2.86]
[1760759168344,9.03069642,184.72,184.65,2.86]
[1760759168554,4.8707,184.72,184.65,2.86]
[1760759168956,9.03135285,184.72,184.65,2.86]
[1760759169152,4.8707,184.72,184.65,2.86]
[1760759169656,4.16141006,184.73,184.65,2.86]
[1760759169856,6.90146529,184.74,184.65,2.86]
[1760759170055,4.16136983,184.73,184.65,2.86]
[1760759170257,4.16237437,184.72,184.65,2.86]
[1760759170457,4.16237437,184.73,184.65,2.86]
[1760759170650,4.16237437,184.72,184.65,2.86]
[1760759170849,6.90146529,184.74,184.65,2.86]
[1760759170850,4.16237437,184.73,184.65,2.86]
[1760759171051,6.90146529,184.74,184.66,4.872]
[1760759171352,4.65635519,184.76,184.64,2.84]
[1760759171353,9.52585519,184.76,184.64,2.84]
[1760759171555,4.16334455,184.75,184.64,2.84]
[1760759171754,4.16334455,184.74,184.69,2.84]
[1760759171955,4.8695,184.76,184.69,2.84]
[1760759172154,4.16303641,184.75,184.69,2.84]
[1760759172359,4.16303641,184.74,184.7,2.84]
[1760759172553,4.8695,184.76,184.7,2.84]
[1760759172760,4.16429679,184.75,184.7,2.84]
[1760759172957,4.16429679,184.74,184.7,2.84]
[1760759173158,4.16429679,184.73,184.68,4.8714]
[1760759173356,4.8695,184.76,184.69,2.84]
[1760759173659,4.16598483,184.75,184.71,2.84]
[1760759173849,4.16556189,184.74,184.67,2.84]
[1760759174056,18.62652378,184.78,184.67,2.84]
[1760759174057,4.16544112,184.77,184.68,2.84]
[1760759174358,5.06389402,184.8,184.69,2.84]
[1760759174359,4.16544112,184.76,184.69,2.84]
[1760759174657,4.16544112,184.75,184.69,2.84]
[1760759174852,8.69188253,184.79,184.69,2.84]
[1760759175053,4.1649497,184.78,184.69,2.84]
[1760759175260,4.1649497,184.77,184.69,2.84]
[1760759175460,4.1649497,184.76,184.69,2.84]
[1760759175661,4.1649497,184.75,184.69,2.84]
[1760759175861,8.69188253,184.79,184.69,2.84]
[1760759176056,4.16445401,184.78,184.72,4.8703]
[1760759176261,4.16445401,184.77,184.72,7.7103]
[1760759176463,4.16445401,184.76,184.72,7.7103]
[1760759176664,4.16445401,184.75,184.72,7.7103]
[1760759176863,8.69188253,184.79,184.72,7.7103]
[1760759176864,8.69188253,184.79,184.72,2.84]
[1760759177166,4.16431735,184.78,184.72,2.84]
[1760759177362,4.16431735,184.77,184.71,2.84]
[1760759177560,4.16431735,184.76,184.72,2.84]
[1760759177766,8.69188253,184.79,184.72,2.84]
[1760759178054,8.69188253,184.79,184.67,2.03136529]
[1760759178055,4.16397664,184.78,184.74,2.84]
[1760759178365,4.16397664,184.78,184.75,2.84]
[1760759178558,4.16397664,184.81,184.75,2.84]
[1760759178866,4.16397664,184.8,184.75,2.84]
[1760759179161,4.16397664,184.79,184.75,2.84]
[1760759179364,2.03136529,184.82,184.75,2.84]
[1760759179660,4.16074834,184.81,184.75,2.84]
[1760759179862,4.16074834,184.8,184.75,2.84]
[1760759180064,4.16074834,184.79,184.75,2.84]
[1760759180265,4.15977009,184.81,184.73,4.8701]
[1760759180460,4.15977009,184.8,184.73,4.8701]
[1760759180660,6.89946529,184.82,184.73,4.8701]
[1760759180661,4.15977009,184.79,184.73,4.8701]
[1760759180858,4.15977009,184.81,184.73,4.8701]
[1760759181058,4.15977009,184.8,184.73,4.8701]
[1760759181255,4.15977009,184.79,184.73,4.8701]
[1760759181454,4.15977009,184.81,184.73,4.8701]
[1760759181661,4.15977009,184.8,184.73,4.8701]
[1760759181863,4.15977009,184.79,184.73,4.8701]
[1760759182162,4.15977009,184.81,184.73,4.8701]
[1760759182468,4.15977009,184.8,184.73,4.8701]
[1760759182663,4.15977009,184.79,184.73,4.8701]
[1760759182863,4.15977009,184.81,184.73,4.8701]
[1760759183064,4.15977009,184.8,184.73,4.8701]
[1760759183264,4.15977009,184.79,184.73,4.8701]
[1760759183462,4.15977009,184.81,184.73,7.7101]
[1760759183666,4.15977009,184.8,184.73,7.7101]
[1760759183864,4.15977009,184.79,184.73,7.7101]
[1760759184069,4.15977009,184.81,184.74,2.84]
[1760759184269,4.15977009,184.8,184.74,2.84]
[1760759184567,4.15977009,184.81,184.74,2.84]
[1760759184769,4.15977009,184.8,184.74,2.84]
[1760759184968,4.15977009,184.81,184.74,2.84]
[1760759189477,6.19113538,184.82,184.74,2.84]
[1760759193174,11.05923538,184.82,184.74,2.84]
[1760759193370,4.15977009,184.81,184.74,2.84]
[1760759193675,6.89946529,184.82,184.74,2.84]
[1760759193875,11.05923538,184.82,184.74,2.84]
[1760759194070,4.15977009,184.81,184.74,2.84]
[1760759194276,2.03136529,184.83,184.75,2.84]
[1760759194479,6.19113538,184.83,184.75,2.84]
[1760759195176,2.03136529,184.83,184.75,2.84]
[1760759196072,2.03136529,184.83,184.76,2.84]
[1760759196777,6.19113538,184.83,184.76,2.84]
[1760759197075,2.03136529,184.83,184.76,2.84]
[1760759197679,4.8674,184.84,184.76,2.84]
[1760759197879,11.05853538,184.84,184.76,2.84]
[1760759198178,4.15977009,184.83,184.76,2.84]
[1760759198679,9.02717009,184.84,184.77,2.84]
[1760759198881,4.15977009,184.83,184.77,2.84]
[1760759199280,11.05853538,184.84,184.77,2.84]
[1760759199476,4.15977009,184.83,184.77,2.84]
[1760759199781,6.89876529,184.84,184.77,2.84]
[1760759199981,11.05853538,184.84,184.77,2.84]
[1760759200281,4.15977009,184.83,184.77,2.84]
[1760759200482,6.89876529,184.84,184.77,2.84]
[1760759200671,11.05853538,184.84,184.77,2.84]
[1760759200874,4.15977009,184.83,184.77,2.84]
[1760759201073,4.8674,184.84,184.77,2.84]
[1760759201275,9.02717009,184.84,184.77,2.84]
[1760759202585,4.15977009,184.84,184.78,2.75]
[1760759202887,4.15977009,184.85,184.78,2.75]
[1760759207288,4.15977009,184.84,184.78,2.75]
[1760759207490,4.15977009,184.85,184.78,2.75]
[1760759207689,4.15977009,184.84,184.78,2.75]
[1760759207989,4.15977009,184.85,184.78,2.75]
[1760759208189,4.15977009,184.84,184.78,2.75]
[1760759208390,11.57365873,184.86,184.78,2.75]
[1760759208391,4.15977009,184.85,184.78,2.75]
[1760759208687,4.15977009,184.85,184.7,132.55022499]
[1760759208688,2.03136529,184.83,184.75,2.75]
[1760759208892,4.15977009,184.82,184.75,2.75]
[1760759209193,9.02817009,184.81,184.75,2.75]
[1760759209394,4.15977009,184.8,184.75,2.75]
[1760759209581,4.8684,184.81,184.7,89.82159028]
[1760759209786,9.02817009,184.81,184.71,2.75]
[1760759209988,4.15977009,184.8,184.72,2.75]
[1760759210189,4.8684,184.81,184.72,2.75]
[1760759210388,4.15977009,184.82,184.72,2.75]
[1760759210588,6.19113538,184.83,184.72,2.75]
[1760759211386,4.15977009,184.82,184.75,2.75]
[1760759211591,11.57950308,184.83,184.75,2.75]
[1760759211592,4.15977009,184.81,184.75,2.75]
[1760759211789,4.15977009,184.82,184.75,2.75]
[1760759211990,2.03136529,184.76,184.61,2.75]
[1760759212184,4.15977009,184.75,184.62,2.75]
[1760759212588,2.03136529,184.73,184.62,2.75]
[1760759212986,2.03136529,184.73,184.65,2.75]
[1760759213388,1.30010142,184.69,184.6,1.30010142]
[1760759213591,1.30010142,184.69,184.61,2.75]
[1760759215087,1.30010142,184.67,184.61,2.75]
[1760759215594,1.30010142,184.63,184.57,2.75]
[1760759215785,1.30010142,184.63,184.57,7.6245]
[1760759215987,1.30010142,184.61,184.54,2.75]
[1760759217095,1.30010142,184.61,184.57,2.75]
[1760759218191,1.30010142,184.61,184.56,4.8747]
[1760759218192,1.30010142,184.61,184.58,2.75]
[1760759218398,1.30010142,184.61,184.56,4.8747]
[1760759218700,1.30010142,184.61,184.58,2.75]
[1760759218894,1.30010142,184.61,184.57,2.75]
[1760759219399,1.30010142,184.61,184.58,2.75]
[1760759219591,1.30010142,184.61,184.56,4.8747]
[1760759219592,1.30010142,184.61,184.57,2.75]
[1760759220195,1.30010142,184.61,184.56,4.8747]
[1760759220999,1.30010142,184.59,184.51,2.75]
[1760759221700,1.30010142,184.57,184.51,2.75]
[1760759222700,1.30010142,184.59,184.55,4.875]
[1760759222905,1.30010142,184.59,184.56,2.75]
[1760759223400,4.8715,184.69,184.6,2.75]
[1760759223598,1.30010142,184.64,184.6,2.75]
[1760759223793,1.30010142,184.64,184.55,8.06]
[1760759223794,1.30010142,184.62,184.55,8.06]
[1760759224001,1.30010142,184.62,184.56,2.75]
[1760759225002,1.30010142,184.62,184.59,2.77]
[1760759225911,1.30010142,184.64,184.61,2.77]
[1760759226210,1.30010142,184.62,184.56,2.77]
[1760759227005,4.11004532,184.72,184.59,1.30010142]
[1760759227206,5.05176821,184.79,184.64,2.77]
[1760759227409,1.30010142,184.74,184.66,2.77]
[1760759227807,1.30010142,184.76,184.71,4.8707]
[1760759228007,1.30010142,184.78,184.71,7.6407]
[1760759228309,1.30010142,184.76,184.71,2.77]
[1760759228612,1.30010142,184.78,184.7,2.77]
[1760759229107,1.30010142,184.78,184.73,2.77]
[1760759229312,1.30010142,184.8,184.72,2.77]
[1760759229607,1.30010142,184.78,184.72,2.77]
[1760759230511,1.30010142,184.8,184.75,2.77]
[1760759230910,1.30010142,184.82,184.76,2.65]
[1760759237517,1.30010142,184.84,184.76,2.65]
[1760759238517,1.30010142,184.84,184.75,1.30010142]
[1760759238518,6.16760142,184.84,184.72,2.65]
[1760759238716,1.30010142,184.83,184.73,1.30010142]
[1760759239420,8.80946983,184.87,184.73,1.30010142]
[1760759239421,1.30010142,184.81,184.73,1.30010142]
[1760759239715,4.8685,184.8,184.73,1.30010142]
[1760759239920,4.8685,184.8,184.69,13.68]
[1760759239921,1.30010142,184.79,184.7,1.30010142]
[1760759240321,4.8685,184.8,184.72,1.30010142]
[1760759240520,4.8685,184.8,184.72,3.95010142]
[1760759240921,1.30010142,184.81,184.72,3.95010142]
[1760759241121,1.30010142,184.81,184.74,1.30010142]
[1760759241623,6.16800142,184.83,184.75,2.65]
[1760759244522,6.16800142,184.83,184.74,1.30010142]
[1760759246917,8.91614693,184.86,184.76,1.30010142]
[1760759247124,1.30010142,184.85,184.77,2.65]
[1760759248622,4.8674,184.84,184.77,2.65]
[1760759249118,6.16860142,184.8,184.72,1.30010142]
[1760759249313,6.16860142,184.8,184.73,2.65]
[1760759249518,12.75318138,184.86,184.75,2.65]
[1760759249817,1.30010142,184.83,184.75,2.65]
[1760759250521,1.30010142,184.85,184.77,2.65]
[1760759252124,6.16750142,184.85,184.77,2.65]
[1760759252623,1.30010142,184.87,184.79,2.65]
[1760759253923,1.30010142,184.85,184.79,2.65]
[1760759256721,6.16610142,184.9,184.82,2.65]
[1760759258429,1.30010142,184.9,184.82,7.5177]
[1760759259229,6.16540142,184.92,184.83,1.30010142]
[1760759261028,26.3,184.94,184.79,4.04010142]
[1760759261029,1.30010142,184.88,184.79,4.04010142]
[1760759261330,1.30010142,184.86,184.79,2.74]
[1760759261526,6.16720142,184.86,184.79,2.74]
[1760759263732,4.8674,184.84,184.79,2.74]
[1760759268733,1.30010142,184.84,184.73,87.45806665]
[1760759268930,1.30010142,184.82,184.74,1.30010142]
[1760759269632,1.30010142,184.8,184.73,90.19806665]
[1760759269938,1.30010142,184.8,184.55,9.7499]
[1760759269939,1.30010142,184.8,184.71,1.30010142]
[1760759270730,1.30010142,184.78,184.71,1.30010142]
[1760759270935,6.16930142,184.78,184.71,1.30010142]
[1760759272336,10.21914741,184.78,184.71,1.30010142]
[1760759272537,4.04984599,184.77,184.71,1.30010142]
[1760759272738,6.16930142,184.78,184.71,1.30010142]
[1760759273036,10.21914741,184.78,184.71,1.30010142]
[1760759273340,4.04984599,184.77,184.71,1.30010142]
[1760759273736,4.8692,184.78,184.71,1.30010142]
[1760759274034,4.04984599,184.78,184.72,2.74]
[1760759274230,4.04984599,184.79,184.76,2.74]
[1760759274437,4.77392421,184.82,184.76,2.74]
[1760759274636,4.09130657,184.81,184.75,4.04010142]
[1760759274838,4.09130657,184.8,184.75,1.30010142]
[1760759275033,4.09130657,184.81,184.75,4.04010142]
[1760759275232,4.09130657,184.82,184.77,1.30010142]
[1760759275433,4.09130657,184.83,184.75,2.74]
[1760759276445,4.8674,184.84,184.75,2.74]
[1760759276633,8.95870657,184.84,184.75,2.74]
[1760759276838,4.09130657,184.83,184.77,2.74]
[1760759277037,4.09130657,184.85,184.77,2.74]
[1760759277245,4.09130657,184.84,184.77,2.74]
[1760759277448,4.09130657,184.85,184.77,2.74]
[1760759277642,4.09130657,184.84,184.77,2.74]
[1760759277942,4.09130657,184.83,184.77,2.74]
[1760759278143,4.09130657,184.84,184.77,2.74]
[1760759278338,8.95890657,184.84,184.77,2.74]
[1760759278541,13.73847582,184.84,184.77,2.74]
[1760759278741,4.09130657,184.83,184.77,2.74]
[1760759279041,4.8676,184.84,184.77,2.74]
[1760759280848,4.09130657,184.85,184.77,2.74]
[1760759281342,4.09130657,184.85,184.77,7.609]
[1760759282746,4.09130657,184.85,184.78,2.74]
[1760759285149,4.09130657,184.84,184.78,2.74]
[1760759285449,4.09130657,184.85,184.78,2.74]
[1760759285650,4.09130657,184.86,184.79,4.8685]
[1760759285849,4.09130657,184.86,184.8,2.85]
[1760759286049,4.09130657,184.87,184.8,2.85]
[1760759286351,4.09130657,184.86,184.8,2.85]
[1760759286546,4.09130657,184.87,184.8,2.85]
[1760759286750,4.09130657,184.86,184.8,2.85]
[1760759286952,4.09130657,184.87,184.8,2.85]
[1760759287245,11.67414127,184.88,184.77,2.02852722]
[1760759287246,4.09130657,184.86,184.77,4.8692]
[1760759287451,4.09130657,184.85,184.77,4.8692]
[1760759287651,4.09130657,184.84,184.77,4.8692]
[1760759287842,4.8673,184.85,184.77,4.8692]
[1760759288048,4.09130657,184.84,184.77,4.8692]
[1760759289651,8.95890657,184.84,184.76,2.85]
[1760759289954,4.09130657,184.83,184.74,2.02852722]
[1760759290149,4.09130657,184.85,184.74,2.02852722]
[1760759290354,2.02852722,184.82,184.73,2.85]
[1760759290550,4.09130657,184.81,184.73,2.85]
[1760759290750,4.09130657,184.8,184.73,2.85]
[1760759290952,6.11983379,184.79,184.69,2.86]
[1760759291248,4.09130657,184.78,184.69,2.86]
[1760759292152,4.8697,184.76,184.69,2.86]
[1760759294753,8.95999305,184.76,184.69,2.86]
[1760759294947,4.8697,184.76,184.69,2.86]
[1760759295857,4.87,184.75,184.69,2.86]
[1760759298655,4.8703,184.74,184.66,2.86]
[1760759298856,2.02852722,184.73,184.63,2.86]
[1760759300062,4.8711,184.71,184.63,2.86]
[1760759302558,4.8711,184.71,184.53,9.7509]
[1760759302559,4.8702,184.74,184.64,2.86]
[1760759303056,4.8702,184.74,184.62,2.02852722]
[1760759303057,8.94736,184.77,184.68,2.86]
[1760759303360,4.8693,184.77,184.68,2.86]
[1760759305957,6.89722722,184.79,184.68,2.86]
[1760759307159,4.8693,184.77,184.68,2.86]
[1760759307661,2.02852722,184.84,184.72,2.86]
[1760759308556,6.11140758,184.84,184.72,2.86]
[1760759308958,4.8679,184.83,184.72,7.7303]
[1760759309156,4.8679,184.83,184.73,2.86]
[1760759309360,8.95078036,184.83,184.73,2.86]
[1760759309556,4.08288036,184.82,184.73,2.86]
[1760759309764,4.8679,184.83,184.74,2.86]
[1760759311162,4.8682,184.82,184.74,2.86]
[1760759311357,10.74102826,184.84,184.74,2.86]
[1760759311557,10.74102826,184.84,184.7,4.8708]
[1760759311558,2.02852722,184.81,184.7,7.7308]
[1760759312769,4.8687,184.8,184.71,2.86]
[1760759313665,8.95158036,184.8,184.71,4.8706]
[1760759313862,4.8687,184.8,184.72,2.86]
[1760759316258,4.8687,184.8,184.71,4.8706]
[1760759316259,5.05176821,184.9,184.77,2.86]
[1760759316456,11.11815942,184.95,184.71,9.7414]
[1760759316457,4.08298347,184.91,184.81,2.86]
[1760759316656,8.56782712,184.94,184.81,2.86]
[1760759316657,4.08298347,184.93,184.81,2.86]
[1760759316856,4.08298347,184.93,184.81,7.7279]
[1760759316857,4.8656,184.91,184.81,7.7279]
[1760759317066,4.8656,184.91,184.81,2.86]
[1760759317267,8.94858347,184.91,184.81,2.86]
[1760759317465,4.8656,184.91,184.81,2.86]
[1760759317960,4.8656,184.91,184.82,4.8677]
[1760759321566,4.8656,184.91,184.83,2.65]
[1760759322573,4.8656,184.91,184.83,4.67852722]
[1760759330575,4.04438229,184.94,184.85,2.65]
[1760759330777,4.04438229,184.95,184.85,2.65]
[1760759330977,4.8656,184.91,184.85,2.65]
[1760759331176,4.8656,184.91,184.81,4.868]
[1760759331177,4.8656,184.91,184.82,2.65]
[1760759332278,4.8661,184.89,184.82,2.65]
[1760759336182,4.8665,184.88,184.79,2.65]
[1760759337377,4.8665,184.88,184.8,1.297792]
[1760759340675,4.8665,184.88,184.82,1.297792]
[1760759341479,4.8665,184.88,184.83,2.65]
[1760759341680,4.8665,184.88,184.82,3.947792]
[1760759341984,1.297792,184.91,184.83,2.65]
[1760759342184,5.33695452,184.94,184.85,2.65]
[1760759342787,4.8652,184.93,184.85,2.65]
[1760759343683,4.8652,184.93,184.86,1.297792]
[1760759343885,1.297792,184.92,184.8,2.84]
[1760759344083,1.297792,184.92,184.82,4.137792]
[1760759344480,4.8659,184.9,184.82,1.297792]
[1760759344686,4.8659,184.9,184.84,4.137792]
[1760759352093,6.163692,184.9,184.81,2.62]
[1760759352299,10.20295332,184.9,184.82,1.297792]
[1760759352498,4.03926132,184.89,184.82,1.297792]
[1760759352798,10.20295332,184.9,184.82,1.297792]
[1760759353392,4.03926132,184.89,184.82,1.297792]
[1760759353592,4.03926132,184.89,184.83,2.62]
[1760759353894,8.90516132,184.9,184.83,2.62]
[1760759354102,4.03926132,184.89,184.83,2.62]
[1760759354293,4.03926132,184.89,184.84,1.297792]
[1760759354495,4.03926132,184.9,184.85,2.62]
[1760759354697,4.03926132,184.91,184.85,2.62]
[1760759355493,4.03926132,184.91,184.85,7.4869]
[1760759355800,16.49637105,184.96,184.88,2.62]
[1760759356001,8.67072572,184.95,184.88,2.62]
[1760759356300,4.05875462,184.94,184.88,2.62]
[1760759356503,15.79137602,184.97,184.88,2.62]
[1760759356504,8.67072572,184.96,184.88,2.62]
[1760759356707,4.05875462,184.95,184.88,2.62]
[1760759356997,4.05875462,184.94,184.88,2.62]
[1760759357194,4.05875462,184.93,184.88,2.62]
[1760759357401,4.05875462,184.95,184.88,2.62]
[1760759357599,9.62938402,184.96,184.88,2.62]
[1760759357600,4.05875462,184.94,184.88,2.62]
[1760759357791,4.05875462,184.93,184.87,3.917792]
[1760759358099,8.67072572,184.95,184.87,3.917792]
[1760759358294,4.05875462,184.94,184.87,3.917792]
[1760759358495,4.05875462,184.93,184.87,3.917792]
[1760759358699,4.05875462,184.94,184.87,3.917792]
[1760759358998,4.05875462,184.93,184.87,3.917792]
[1760759359187,4.6119711,184.95,184.87,2.62]
[1760759359188,4.05875462,184.92,184.87,2.62]
[1760759359388,4.05875462,184.91,184.87,2.62]
[1760759359591,4.05875462,184.93,184.87,2.62]
[1760759359800,4.05875462,184.92,184.87,2.62]
[1760759360103,4.05875462,184.91,184.84,1.297792]
[1760759360294,4.05875462,184.9,184.84,1.297792]
[1760759360494,4.05875462,184.89,184.85,2.62]
[1760759360696,4.05875462,184.88,184.85,2.62]
[1760759360995,4.05875462,184.91,184.87,2.62]
[1760759361196,4.05875462,184.9,184.87,2.62]
[1760759361392,44.94,184.95,184.86,1.297792]
[1760759361393,4.05875462,184.89,184.86,1.297792]
[1760759361597,4.05875462,184.91,184.87,2.62]
[1760759361800,4.05875462,184.9,184.86,1.297792]
[1760759362097,4.05875462,184.93,184.87,2.62]
[1760759362302,4.05875462,184.92,184.86,1.297792]
[1760759362595,4.05875462,184.91,184.86,1.297792]
[1760759362801,4.05875462,184.9,184.86,1.297792]
[1760759363095,4.05875462,184.93,184.87,2.62]
[1760759363309,4.05875462,184.92,184.86,3.917792]
[1760759363494,4.05875462,184.91,184.86,1.297792]
[1760759363695,4.05875462,184.9,184.87,2.62]
[1760759364000,4.05875462,184.93,184.87,2.62]
[1760759364200,4.05875462,184.92,184.86,1.297792]
[1760759364391,4.05875462,184.91,184.86,1.297792]
[1760759364590,9.4769711,184.94,184.86,1.297792]
[1760759364591,4.05875462,184.93,184.87,2.62]
[1760759364795,4.05875462,184.92,184.87,2.62]
[1760759365102,4.05875462,184.91,184.87,2.62]
[1760759365298,4.05875462,184.93,184.87,2.62]
[1760759365603,4.05875462,184.92,184.87,2.62]
[1760759365804,4.05875462,184.93,184.87,2.62]
[1760759366100,4.05875462,184.92,184.88,1.297792]
[1760759366302,4.05875462,184.93,184.9,1.297792]
[1760759366604,44.98,184.98,184.91,2.62]
[1760759366798,14.98459215,184.97,184.88,3.917792]
[1760759366995,4.0492967,184.96,184.89,2.62]
[1760759367199,1.297792,184.93,184.84,2.62]
[1760759367401,5.3470887,184.93,184.85,1.297792]
[1760759367601,4.0492967,184.92,184.88,2.62]
[1760759367798,4.0492967,184.94,184.88,2.62]
[1760759367999,4.0492967,184.93,184.88,2.62]
[1760759368206,4.0492967,184.94,184.88,2.62]
[1760759368397,4.0492967,184.93,184.88,2.62]
[1760759368602,4.0492967,184.94,184.88,2.62]
[1760759368802,4.0492967,184.93,184.88,2.62]
[1760759369107,4.0492967,184.94,184.88,2.62]
[1760759369406,4.0492967,184.93,184.88,2.62]
[1760759369701,4.62009053,184.95,184.88,2.62]
[1760759369702,4.0492967,184.94,184.88,2.62]
[1760759370005,4.0492967,184.93,184.9,2.62]
[1760759370208,8.66780483,184.95,184.9,2.62]
[1760759370511,4.0492967,184.94,184.9,2.62]
[1760759371195,4.0492967,184.95,184.9,2.62]
[1760759371404,4.0492967,184.94,184.9,2.62]
[1760759371600,4.0492967,184.95,184.9,2.62]
[1760759371807,4.0492967,184.94,184.9,2.62]
[1760759372104,5.3470887,184.95,184.9,2.62]
[1760759372900,4.0492967,184.94,184.9,2.62]
[1760759373302,5.3470887,184.95,184.9,2.62]
[1760759373502,5.3470887,184.95,184.87,7.4866]
[1760759374306,9.96559683,184.95,184.87,7.4866]
[1760759374506,5.3470887,184.95,184.87,7.4866]
[1760759375409,9.96559683,184.95,184.87,7.4866]
[1760759375600,1.297792,184.93,184.87,2.62]
[1760759376805,5.3470887,184.93,184.87,2.62]
[1760759377011,1.297792,184.93,184.87,2.62]
[1760759377912,1.297792,184.92,184.87,2.62]
[1760759378112,1.297792,184.92,184.86,2.62]
[1760759384315,5.3470887,184.92,184.86,2.62]
[1760759384616,1.297792,184.92,184.86,2.62]
[1760759384810,5.3470887,184.92,184.86,2.62]
[1760759385008,1.297792,184.92,184.86,2.62]
[1760759385212,5.3470887,184.92,184.86,2.62]
[1760759385413,1.297792,184.92,184.86,2.62]
[1760759385614,5.3470887,184.92,184.86,2.62]
[1760759385814,1.297792,184.92,184.86,2.62]
[1760759386016,5.3470887,184.92,184.86,2.62]
[1760759386216,1.297792,184.92,184.86,2.62]
[1760759386413,5.3470887,184.92,184.86,2.62]
[1760759386614,1.297792,184.92,184.86,2.62]
[1760759386921,5.3470887,184.92,184.86,2.62]
[1760759387122,1.297792,184.92,184.86,2.62]
[1760759387314,5.3470887,184.92,184.86,2.62]
[1760759387614,1.297792,184.92,184.86,2.62]
[1760759387916,5.3470887,184.92,184.86,2.62]
[1760759388112,1.297792,184.92,184.86,2.62]
[1760759388309,5.3470887,184.92,184.86,2.62]
[1760759388513,1.297792,184.92,184.86,2.62]
[1760759388716,5.3470887,184.92,184.86,2.62]
[1760759389320,4.0492967,184.91,184.85,4.8671]
[1760759390321,4.0492967,184.91,184.86,2.69]
[1760759390518,4.0492967,184.91,184.85,4.8671]
[1760759390718,4.0492967,184.91,184.86,2.69]
[1760759390918,4.0492967,184.91,184.85,4.8671]
[1760759391317,4.0492967,184.91,184.86,2.69]
[1760759391522,4.0492967,184.91,184.85,4.8671]
[1760759391716,4.0492967,184.91,184.86,2.69]
[1760759391922,4.0492967,184.91,184.85,4.8671]
[1760759392220,4.0492967,184.91,184.86,2.69]
[1760759392415,4.0492967,184.91,184.85,4.8671]
[1760759392718,4.0492967,184.91,184.86,2.69]
[1760759392917,4.0492967,184.91,184.85,4.8671]
[1760759393323,4.0492967,184.91,184.86,2.69]
[1760759393519,4.0492967,184.91,184.85,4.8671]
[1760759393823,4.0492967,184.91,184.86,2.69]
[1760759395322,4.0492967,184.91,184.85,4.8671]
[1760759396018,4.0492967,184.91,184.86,2.69]
[1760759396419,4.0492967,184.9,184.85,4.8671]
[1760759396723,4.0492967,184.91,184.85,4.8671]
[1760759396923,4.0492967,184.9,184.86,2.69]
[1760759397124,4.0492967,184.91,184.86,2.69]
[1760759397321,4.0492967,184.9,184.85,4.8671]
[1760759397519,4.0492967,184.91,184.87,2.69]
[1760759397717,8.73118964,184.92,184.87,2.69]
[1760759397918,4.0492967,184.91,184.86,4.8667]
[1760759398323,4.68189294,184.92,184.86,4.8667]
[1760759398622,10.01061363,184.91,184.84,2.69]
[1760759398823,4.03092869,184.9,184.84,2.69]
[1760759399014,4.03092869,184.89,184.84,2.69]
[1760759399213,4.03092869,184.9,184.84,2.69]
[1760759399415,4.03092869,184.89,184.84,2.69]
[1760759399616,4.03092869,184.88,184.84,2.69]
[1760759399830,8.71282163,184.9,184.84,2.69]
[1760759400125,4.03092869,184.89,184.83,4.8674]
[1760759400319,4.03092869,184.88,184.84,2.69]
[1760759400513,4.68189294,184.89,184.84,2.69]
[1760759400720,8.71506145,184.88,184.82,2.69]
[1760759400916,4.03316851,184.87,184.81,4.8681]